Cogmind - Beta 15 @@@ ROGUE MODE // 2025.06.16 @ 18:04:57 Player: Envian Result: Destroyed by Grenadier 2a with Mini Grenade Launcher Performance ------------- Evolutions (0) 0 Regions Visited (4) 800 Robots Destroyed (20) 100 Value Destroyed (463) 463 Prototype IDs (25) 500 Alien Tech Used (0) 0 Bonus (300) 300 TOTAL SCORE: 2163 Bonus ------- Aligned with FarCom 300 Cogmind --------- Core Integrity 0/250 Matter 274/300 Energy 58/100 System Corruption 1% Temperature Cool (2) Movement Treading (160) Location -9/Mines Parts ------- > --- POWER (1) -------- (None) > --- PROPULSION (2) --- Light Treads Light Treads > --- UTILITY (2) ------ Large Storage Unit Structural Scanner > --- WEAPON (2) ------- (None) > --- INVENTORY (15) --- Improved Ion Engine Light Nuclear Core Light Nuclear Core Improved Heat Sink Improved Heat Sink Small Storage Unit Medium Storage Unit Improved Targeting Computer Mini Grenade Launcher Field Lobotomy Kit (4) Heavy Explosive Trap Peak State ------------ > --- POWER ------------ (None) > --- PROPULSION ------- Light Treads Light Treads > --- UTILITY ---------- Large Storage Unit Structural Scanner > --- WEAPON ----------- Field Lobotomy Kit > --- INVENTORY -------- Improved Ion Engine Light Nuclear Core Light Nuclear Core Improved Heat Sink Improved Heat Sink Small Storage Unit Medium Storage Unit Improved Targeting Computer Mini Grenade Launcher Heavy Explosive Trap [Rating: 16] Favorites ----------- Power Ion Engine Engine Ion Engine Propulsion Light Treads Treads Light Treads Utility Large Storage Unit Device Improved Heat Sink Storage Large Storage Unit Protection Medium Armor Plating Weapon Light Assault Rifle Energy Gun Particle Gun Ballistic Gun Light Assault Rifle Special Weapon Field Lobotomy Kit Build | -11 -10 -10 -10 -9 ------- Run | Yrd Mat Min Exi Min Slots Evolved . | . . . . . Power . | . . . . . Propulsion . | . . . . . Utility . | . . . . . Weapon . | . . . . . Parts Attached 16 | 7 4 2 . 3 Power 1 | 1 . . . . Engine 1 | 1 . . . . Core . | . . . . . Reactor . | . . . . . Propulsion 4 | 2 . . . 2 Treads 4 | 2 . . . 2 Leg . | . . . . . Wheel . | . . . . . Hover . | . . . . . Flight . | . . . . . Utility 6 | 1 4 1 . . Device 2 | . 1 1 . . Storage 3 | 1 2 . . . Processor . | . . . . . Hackware . | . . . . . Protection 1 | . 1 . . . Artifact . | . . . . . Weapon 5 | 3 . 1 . 1 Energy Gun 2 | 1 . 1 . . Energy Cannon . | . . . . . Ballistic Gun 2 | 2 . . . . Ballistic Cannon . | . . . . . Launcher . | . . . . . Special Weapon 1 | . . . . 1 Impact Weapon . | . . . . . Slashing Weapon . | . . . . . Piercing Weapon . | . . . . . Special Melee Weapon . | . . . . . Unidentified Prototypes . | . . . . . Parts Lost 7 | . 1 1 . 5 Power 1 | . . . . 1 Propulsion 2 | . . . . 2 Utility 1 | . 1 . . . Weapon 3 | . . 1 . 2 Highest Loss Streak 5 | . 1 1 . 5 To Critical Strikes . | . . . . . Average Backups 9 | 1 7 10 11 11 Power 2 | . 2 3 3 3 Propulsion 1 | . . 2 2 1 Utility 3 | . 3 4 5 5 Weapon 1 | . . 1 1 1 Tool/Special . | . . . . . Unused Backups 6 | . . . . 6 Power 3 | . . . . 3 Propulsion . | . . . . . Utility 2 | . . . . 2 Weapon 1 | . . . . 1 Tool/Special . | . . . . . Average Slot Usage (%) 99 | . 99 100 100 94 Engine 13 | . 14 14 14 12 Treads 27 | . 28 28 28 26 Device 10 | . 5 14 14 14 Storage 14 | . 14 14 14 14 Protection 3 | . 7 . . . Energy Gun 4 | . . 5 14 13 Ballistic Gun 22 | . 28 22 14 12 Peak Build Rating 16 | 6 10 12 11 16 Average Rating 9 | 4 9 10 10 11 On Entrance 7 | . 6 10 10 11 Naked Turns . | . . . . . Heaviest Build 35 | 13 35 30 30 30 Greatest Support 40 | 40 40 40 40 40 Greatest Overweight (x) 1 | . . . . 1 Average Overweight (x) . | . . . . . Largest Inventory Capacity 15 | 8 15 15 15 15 Average Capacity 14 | 6 14 15 15 15 Most Carried 13 | 5 9 13 13 13 Average Carried 9 | 1 7 11 12 12 Final Capacity 15 | 8 15 15 15 15 Final Carried 13 | . 9 12 13 11 Class Distribution -------------------- 100% | Mutant Dominant Class ---------------- Mutant | -10/Materials Mutant | -10/Mines Mutant | -10/Exiles Mutant | -9/Mines Resources | -11 -10 -10 -10 -9 ----------- Run | Yrd Mat Min Exi Min Matter Collected 586 | 196 294 96 . . Remotely . | . . . . . Salvage Created 666 | . 505 161 . . Parts 47 | . 33 14 . . Haulers Intercepted 2 | . 2 . . . Recyclers Shooed . | . . . . . Parts Field Recycled . | . . . . . Retrieved Matter . | . . . . . Parts Self-Destructed . | . . . . . Prevented . | . . . . . Kills | -11 -10 -10 -10 -9 ------- Run | Yrd Mat Min Exi Min Combat Hostiles Destroyed 13 | . 7 6 . . Guns 13 | . 7 6 . . Classes Destroyed 7 | . 5 2 . . Tunneler 1 | . . 1 . . Hauler 2 | . 2 . . . Recycler 1 | . 1 . . . Operator 1 | . 1 . . . Watcher 2 | . 2 . . . Swarmer 4 | . . 4 . . Grunt 9 | . 7 2 . . Best Kill Streak 3 | . 2 3 . . Combat Bots Only 3 | . 2 3 . . Max Kills in Single Turn 1 | . 1 1 . . Gunslinging . | . . . . . Exploded . | . . . . . Melee . | . . . . . Uniques/NPCs Destroyed . | . . . . . Combat | -11 -10 -10 -10 -9 -------- Run | Yrd Mat Min Exi Min Hostile Shots Fired 94 | . 46 25 . 23 Missed 21 | . 16 1 . 4 Hits 73 | . 30 24 . 19 Projectile 73 | . 30 24 . 19 AOE 13 | . . . . 13 Critical Strikes 1 | . 1 . . . Damage Taken 1278 | . 394 222 . 662 Core 270 | . 39 61 . 170 Absorbed by Shields . | . . . . . Core Remaining (%) 100 | 100 . . . . Volleys Fired 70 | . 50 19 . 1 Largest 2 | . 2 2 . 1 Hottest 85 | . 40 85 . . Shots Fired 141 | . 100 40 . 1 Gun 140 | . 100 40 . . Cannon . | . . . . . Launcher . | . . . . . Special 1 | . . . . 1 Kinetic 133 | . 100 33 . . Thermal 7 | . . 7 . . Explosive . | . . . . . Electromagnetic . | . . . . . Robot Hit Streak 9 | . 9 6 . 4 Robot Miss Streak 3 | . 2 3 . . Penetration Max . | . . . . . Secondary Targets 1 | . 1 . . . Max Gunslinging Chain 1 | . 1 . . . Shots Hit Robots 82 | . 61 20 . 1 Core Hits 39 | . 27 12 . . Critical Kills 1 | . 1 . . . Critical Parts Destroyed 1 | . 1 . . . Critical Strikes 2 | . 2 . . . Destroy 2 | . 2 . . . Melee Attacks . | . . . . . Impact . | . . . . . Slashing . | . . . . . Piercing . | . . . . . Sneak Attacks . | . . . . . Combat Hostiles . | . . . . . Follow-up Attacks . | . . . . . Damage Inflicted 908 | . 630 278 . . Guns 864 | . 619 245 . . Cannons . | . . . . . Explosions . | . . . . . Melee . | . . . . . Ramming 44 | . 11 33 . . Kinetic 798 | . 619 179 . . Thermal 66 | . . 66 . . Explosive . | . . . . . Electromagnetic . | . . . . . Impact . | . . . . . Slashing . | . . . . . Piercing . | . . . . . Highest Corruption 1 | . 1 1 1 1 Average Corruption 1 | . 1 1 1 1 Corruption Purged . | . . . . . Corruption Blocked . | . . . . . Effects 23 | . 4 13 5 1 Message Errors 6 | . 2 2 2 . Matter Fused 7 | . . 5 1 1 Heat Flow Errors 3 | . 1 1 1 . Energy Discharges 2 | . 1 1 . . Parts Fused 1 | . . 1 . . Data Loss (minor) 1 | . . 1 . . Data Loss (major) 1 | . . . 1 . Misfires 2 | . . 2 . . Overload Shots . | . . . . . Overflow Damage . | . . . . . Projectiles . | . . . . . Explosions . | . . . . . Melee . | . . . . . Knockbacks . | . . . . . Impact . | . . . . . Kinetic . | . . . . . Secondary . | . . . . . Self-Inflicted Damage . | . . . . . Shots . | . . . . . Rammed 11 | . 4 7 . . Targets Rammed 13 | . 5 8 . . Kicked . | . . . . . Crushed 2 | . 1 1 . . Highest Temperature 291 | . 291 244 119 . Average Temperature 37 | . 31 55 63 . Received Heat Transfer 297 | . 240 45 . 12 Effects 1 | . 1 . . . Energy Bleed 1 | . 1 . . . Siege Activations . | . . . . . Martial Activations . | . . . . . Shielding Activations . | . . . . . Robots Disrupted . | . . . . . Combat Hostiles . | . . . . . Robots Corrupted . | . . . . . Combat Hostiles . | . . . . . Parts Fried . | . . . . . Impact Corruptions . | . . . . . Robots Melted . | . . . . . Combat Hostiles . | . . . . . Parts Melted . | . . . . . Heat Transferred 148 | . . 148 . . Parts Sabotaged . | . . . . . Parts Stolen . | . . . . . Parts Stripped . | . . . . . Power Chain Reactions . | . . . . . Alert | -11 -10 -10 -10 -9 ------- Run | Yrd Mat Min Exi Min Maximum Alert Level . | . . . . . Low Security (%) 100 | 100 100 100 . 100 Level 1 . | . . . . . Level 2 . | . . . . . Level 3 . | . . . . . Level 4 . | . . . . . Level 5 . | . . . . . High Security . | . . . . . Max Security . | . . . . . Peak Influence 62 | . 42 62 . 2 Initial . | . . . . . Average 7 | . 8 7 . . Influence Increases 422 | . 259 160 . 3 Destroy 0b10 Robot/C 260 | . 140 120 . . Destroy 0b10 Robot/NC 35 | . 30 5 . . Destroy Leader 68 | . 48 20 . . Successful Hack 26 | . 26 . . . Destroy Structure 3 | . . . . 3 Lose Combat Pursuer 30 | . 15 15 . . Influence Decreases 420 | . 259 160 . 1 Time Decay 418 | . 257 160 . 1 Lost Part 2 | . 2 . . . Squads Dispatched 1 | . 1 . . . Investigation . | . . . . . Extermination . | . . . . . Reinforcement 1 | . 1 . . . Assault . | . . . . . Garrison . | . . . . . Intercept . | . . . . . Searches Triggered . | . . . . . Construction Impeded . | . . . . . Haulers Reinforced . | . . . . . Active Scanning Responses . | . . . . . Cargo Convoy Interrupts . | . . . . . Stealth | -11 -10 -10 -10 -9 --------- Run | Yrd Mat Min Exi Min Distress Signals . | . . . . . Communications Jammed . | . . . . . Distress Signals . | . . . . . Times Spotted 32 | . 17 7 . 8 Peak Tracking Total 6 | . 2 3 . 6 Tactical Retreats 2 | . 1 1 . . Traps | -11 -10 -10 -10 -9 ------- Run | Yrd Mat Min Exi Min Traps Triggered 1 | . 1 . . . Indirectly . | . . . . . Trap Hack Attempts . | . . . . . Triggered . | . . . . . Disarmed 9 | . 9 . . . Reprogrammed . | . . . . . Reused . | . . . . . Traps Extracted . | . . . . . Installed . | . . . . . Triggered . | . . . . . Most Traps Carried 1 | . . 1 1 1 Machines | -11 -10 -10 -10 -9 ---------- Run | Yrd Mat Min Exi Min Machines Disabled . | . . . . . Max in Single Turn . | . . . . . Machines Repaired . | . . . . . Machines Dismantled . | . . . . . Machines Sabotaged . | . . . . . Overloaded Fab Kills . | . . . . . Hacking | -11 -10 -10 -10 -9 --------- Run | Yrd Mat Min Exi Min Machines Accessed 10 | . 8 . 2 . Terminals 7 | . 7 . . . Fabricators . | . . . . . Repair Stations . | . . . . . Recycling Units 1 | . 1 . . . Scanalyzers . | . . . . . Garrison Access . | . . . . . Total Hacks 33 | . 31 . 2 . Successful 23 | . 21 . 2 . Failed 10 | . 10 . . . Catastrophic 1 | . 1 . . . Database Lockouts . | . . . . . Manual 14 | . 13 . 1 . Terminals 29 | . 29 . . . Fabricators . | . . . . . Repair Stations . | . . . . . Recycling Units 2 | . 2 . . . Scanalyzers . | . . . . . Garrison Access . | . . . . . Terminal Hacks 13 | . 11 . 2 . Record 2 | . 1 . 1 . Prototype ID Bank 1 | . 1 . . . Branch Access Points 1 | . 1 . . . Emergency Access Points 1 | . 1 . . . Alert Level 1 | . 1 . . . Disarm Traps 2 | . 2 . . . Dispatch Records 1 | . 1 . . . Transport Status 2 | . 2 . . . Hauler Manifests 1 | . 1 . . . Proto ID Catalog 1 | . . . 1 . Fabricator Hacks . | . . . . . Repair Station Hacks . | . . . . . Recycling Unit Hacks 1 | . 1 . . . Report Inventory 1 | . 1 . . . Scanalyzer . | . . . . . Garrison Access Hacks . | . . . . . Unauthorized Hacks 9 | . 9 . . . Terminals 8 | . 8 . . . Botnet 6 | . 6 . . . Operators 2 | . 2 . . . Fabricators . | . . . . . Repair Stations . | . . . . . Recycling Units 1 | . 1 . . . Mask 1 | . 1 . . . Scanalyzers . | . . . . . Garrison Access . | . . . . . Data Cores Recovered . | . . . . . Used . | . . . . . Hacking Detections 5 | . 5 . . . Full Trace Events 1 | . 1 . . . Feedback Events . | . . . . . Feedback Blocked . | . . . . . Robot Schematics Acquired . | . . . . . Robots Built . | . . . . . Authchips . | . . . . . Time . | . . . . . Total Robot Build Rating . | . . . . . Part Schematics Acquired . | . . . . . Parts Built . | . . . . . Authchips . | . . . . . Time . | . . . . . Total Part Build Rating . | . . . . . Parts Repaired . | . . . . . Time . | . . . . . Parts Recycled . | . . . . . Recycled Matter . | . . . . . Retrieved Matter . | . . . . . Retrieved Components . | . . . . . Parts Scanalyzed . | . . . . . Part Schematics Acquired . | . . . . . Parts Damaged . | . . . . . Bothacking | -11 -10 -10 -10 -9 ------------ Run | Yrd Mat Min Exi Min Used RIF Installer . | . . . . . Robots Hacked . | . . . . . Non-combat . | . . . . . Combat . | . . . . . Robot Hacks Applied . | . . . . . Relay Couplers Released . | . . . . . Fabnet Peak Effective % . | . . . . . Robots Rewired . | . . . . . Allies Hacked . | . . . . . Hacks Repelled . | . . . . . Allies | -11 -10 -10 -10 -9 -------- Run | Yrd Mat Min Exi Min Total Allies 2 | . . 1 . 1 Largest Group 1 | . . 1 1 1 Highest-Rated Group 34 | . . 31 31 34 Highest-Rated Ally 34 | . . 31 31 34 Total Orders . | . . . . . Ally Attacks 5 | . . . . 5 Total Damage 159 | . . . . 159 Kills . | . . . . . Allies Corrupted . | . . . . . Allies Melted . | . . . . . Field Lobotomies 1 | . . . . 1 Intel | -11 -10 -10 -10 -9 ------- Run | Yrd Mat Min Exi Min Active Infowar (turns) 1085 | . . 389 510 186 Structural 1085 | . . 389 510 186 Robot Analysis Total . | . . . . . Derelict Logs Recovered 3 | . . 1 . 2 Drone Launches . | . . . . . Drone Recoveries . | . . . . . Exploration | -11 -10 -10 -10 -9 ------------- Run | Yrd Mat Min Exi Min Turns Passed 3179 | 61 1418 1004 510 186 Spaces Moved 1775 | 39 739 569 319 109 Core 16 | 16 . . . . Treads 1759 | 23 739 569 319 109 Legs . | . . . . . Wheels . | . . . . . Hover . | . . . . . Flight . | . . . . . Fastest Speed 50 | 50 160 160 160 160 Average Speed 159 | 114 160 160 160 160 Slowest Speed 240 | 160 160 160 160 240 Overloaded Moves . | . . . . . Propulsion Burnouts . | . . . . . Robots Hopped . | . . . . . Potential Cave-ins . | . . . . . Cave-ins Triggered . | . . . . . Exploration Rate (%) 57 | 3 97 87 69 32 Regions Visited 4 Branch Regions 3 Pre-discovered Areas 1 | . . . . 1 Known Exits Taken 2 | . 1 1 . . Unknown Exits Taken 2 | 1 . . 1 . Scrap Searched 1 | . . 1 . . Spaces Dug . | . . . . . Terrain Destroyed . | . . . . . Melee . | . . . . . Projectile . | . . . . . AOE . | . . . . . Terrain Rammed . | . . . . . Walls Destroyed . | . . . . . Machines Disabled . | . . . . . Actions | -11 -10 -10 -10 -9 --------- Run | Yrd Mat Min Exi Min Total 1998 | 55 882 623 319 119 Wait 104 | 4 73 22 . 5 Move 1771 | 38 738 568 318 109 Hop . | . . . . . Pick Up 21 | 5 11 4 1 . Fast Attach 2 | 2 . . . . Attach 12 | 5 3 1 . 3 Detach 2 | . 1 . . 1 Swap 2 | . 1 1 . . Drop 1 | 1 . . . . Fire 70 | . 50 19 . 1 Melee . | . . . . . Ram . | . . . . . Kick . | . . . . . Crush 13 | . 5 8 . . Escape Stasis . | . . . . . Rewire . | . . . . . Trap . | . . . . . Miscellaneous . | . . . . . Route ------- -11/Scrapyard -10/Materials (discovered 5 exits: [*Mat x3] / *Min x2) -10/Mines (discovered 3 exits: [*Mat x2] / *Exi) -10/Exiles (discovered 2 exits: [*Min x2]) -9/Mines History --------- Turn | Location | Event 11 | -11/Scrapyard | Discovered new exit (range 16) 62 | -11/Scrapyard | Entered Materials 255 | -10/Materials | Discovered new exit (range 9) 318 | -10/Materials | Build established: Mutant 359 | -10/Materials | Discovered new exit (range 13) 1039 | -10/Materials | Identified exit to Mines 1041 | -10/Materials | Discovered new exit (range 16) 1347 | -10/Materials | Discovered new exit (range 15) 1480 | -10/Materials | Entered Mines 1481 | -10/Mines | Met a Derelict bent on vengeance 1677 | -10/Mines | Discovered new exit (range 8) 1975 | -10/Mines | Found a hidden stash of uninstalled traps 2103 | -10/Mines | Identified exit to Exiles 2107 | -10/Mines | Escorted by a lone wolf Derelict 2140 | -10/Mines | Discovered new exit (range 14) 2477 | -10/Mines | Deemed a non-threat by the Exiles lab entrance 2484 | -10/Mines | Entered Exiles 2484 | -10/Exiles | Accompanied by 1 ally 2508 | -10/Exiles | Discovered new exit (range 15) 2524 | -10/Exiles | Met 8R-AWN 2550 | -10/Exiles | Met EX-HEX 2601 | -10/Exiles | Met EX-BIN 2622 | -10/Exiles | Aligned with FarCom system 2624 | -10/Exiles | Given EX-Vault access code 2660 | -10/Exiles | Opened EX-Vault 2732 | -10/Exiles | Warned to stay clear of 0b10 Research branches 2792 | -10/Exiles | Found Field Lobotomy Kit 2866 | -10/Exiles | Met EX-DEC 2981 | -10/Exiles | Discovered new exit (range 10) 2994 | -10/Exiles | Left Exiles lab with Field Lobotomy Kit 2994 | -10/Exiles | Entered Mines 3026 | -9/Mines | Learned 4 Materials zone layouts 3111 | -9/Mines | Assembled infested the area 3116 | -9/Mines | Learned location of Zion (-7) 3163 | -9/Mines | Core integrity fell below 50% 3171 | -9/Mines | Core integrity fell below 20% 3171 | -9/Mines | Assimilated D-53 Grenadier with FLK Orb 3180 | -9/Mines | Destroyed by Grenadier 2a with Mini Grenade Launcher Last Messages --------------- 03116_ Acquired derelict log, extracted data. World map updated: -7/Zion. 03151_ C-30 ARC bursts open, deploying its payload. 03151_ D-53 Grenadier unfolds itself. 03161_ Core Extractor disabled. 03164_ The unstable cave ceiling collapses. 03166_ Lgt. Assault Rifle destroyed. 03166_ Lgt. Treads destroyed. 03166_ Plasma Injector explodes. 03167_ as-22066 destroyed. 03168_ U-05 Engineer lays Concrete. 03168_ Lgt. Treads destroyed. 03168_ Ion Engine destroyed. 03169_ U-05 Engineer lays Concrete. 03169_ U-05 Engineer destroyed. 03170_ Particle Gun destroyed. 03171_ The unstable cave ceiling collapses. 03171_ D-53 Grenadier assimilated. 03176_ K-01 Serf collects debris. 03179_ as-43558 destroyed. Map ----- +----------------------------------------------------+ | | | | | | | | | | | | | | | | | | | | | | | ?????????????????????????????????????????????????? | | ?????????????????????????????????????????????????? | | ?????????????????????????????????????????????????? | | ?????????????????????????????????????????????????? | | ???????????????????########??????????????????????? | | ??????????????????##########?????????????????????? | | ?????????????????#### ###?????????????????????? | | ????????????????#### ##?????????????????????? | | ????????????????### ######?????????????????? | | ????????????????## ########???????????????? | | ????????????????## ### ######?????g???????? | | ????????????????## """ # ;##### ???????????? | | ???????????????### "" ;;### g?g ?????? | | ???????????????### #### ##?????? | | ????????? ####### @ ### ###????? | | ??????## ####### d %###????? | | ??????## # d % | | ?????### ######### ##### | | ?????## #### ########## ##### | | ?????## ##### = ###????????????? | | ?????## ???#### # # |%=###?????????????? | | ?????### ???#### k ######### a### ?????????????? | | ?????####???### ######### ###??????????????? | | ????????????## ##??#####a##???????????????? | | ????????????## k ########## ##???????????????? | | ????????????### # ####### ???????????????? | | ????????????##### ### # ??????????????? | | ?????????????#### ## #####??????#######?? | | ???????????????## ### # #####?????#########? | | ???????????????## ## ## ####??????### ###? | | ???????????????## # ## #####??##### ### | | ???????????????## " ### ###??##### ### | | ???????????###### % #### ##??## ## | | ?????## ???###### " ##### ##??## ## ## | | ?????## ##### ###?## ## ### | | ?????###? ######### ##### ###### ## ### | | ????????? ########## ##### ##### ### ### | | ?????????????????### #### ## | | ??????????????????## #### ## | +----------------------------------------------------+ Best States ------------- Heat Dissipation 39 Energy Generation 10 Energy Capacity 250 Matter Stores 300 Matter Capacity 300 Sight Range 16 Terrain Scan Density 10 Armor Coverage 225 Evasion (%) 50 Recoil Reduction 2 Item Schematics ----------------- None Robot Schematics ------------------ None Fabricated ------------ Nothing Repaired ---------- Nothing Alien Tech Used ----------------- None Achievements -------------- Quantum Hacking Challenges ------------ None Game ------ Seed NavigationFieldCleaver Manual? 0 Play Time 00:36:45 Cumulative 32.2 hours Start 2025.06.16 @ 16:59:52 End 2025.06.16 @ 18:04:57 Sessions 1 Manual Loads 0 Difficulty Rogue Special Mode None Game No. 38 Rogue 38 Adventurer 0 Explorer 0 Win Type - Total 1 Types 1/0/0/0/0/0/0/0/0/0 Lore% 17 Gallery% 26 Achievement% 31 Wizard Run 0 Options --------- Layout 0 ASCII 0 Keyboard 0 Movement Numpad Keybinds 0 Fullscreen 1 Font 24/Smallcaps Map View 76x50 Zoom Use 0% Tactical HUD 1 Map Filters NONE Filters NONE Steam 1 RUN: 3d29da35-3685-45da-9bfd-8fb5acde1c9b